bitfinex/quotes_BTCUSD_20241021
["timestamp","ask_amount","ask_price","bid_price","bid_amount"]
[1729547375775,0.01382372,67812.0,67808.0,0.0074796]
[1729547375923,0.04607928,67811.0,67810.0,0.002]
[1729547377018,0.04707928,67811.0,67810.0,0.002]
[1729547377229,0.04807928,67811.0,67810.0,0.002]
[1729547381436,0.04807928,67811.0,67810.0,0.007]
[1729547382009,0.04807928,67811.0,67810.0,0.0096536]
[1729547383105,0.04707928,67811.0,67810.0,0.0046536]
[1729547383325,0.04707928,67811.0,67810.0,0.005]
[1729547383543,0.04607928,67811.0,67810.0,0.002]
[1729547384116,0.04707928,67811.0,67810.0,0.002]
[1729547384318,0.04607928,67811.0,67810.0,0.002]
[1729547384528,0.04607928,67811.0,67810.0,0.006]
[1729547384747,0.04607928,67811.0,67810.0,0.015]
[1729547385668,0.20937166,67811.0,67810.0,0.01764717]
[1729547386119,0.22319532,67811.0,67810.0,0.01764717]
[1729547386930,0.17711604,67811.0,67810.0,0.01764717]
[1729547387542,0.28769917,67811.0,67810.0,0.01764717]
[1729547388640,0.28769917,67811.0,67810.0,0.01264717]
[1729547389229,0.28768873,67811.0,67810.0,0.01264717]
[1729547390545,0.28768873,67811.0,67810.0,0.01764717]
[1729547392077,0.28768873,67811.0,67810.0,0.01763823]
[1729547393156,0.28768873,67811.0,67810.0,0.01263823]
[1729547393629,0.28768873,67811.0,67810.0,0.01763823]
[1729547394335,0.28769396,67811.0,67810.0,0.01763823]
[1729547396542,0.17710911,67811.0,67810.0,0.01763823]
[1729547399485,0.17710783,67811.0,67810.0,0.01763823]
[1729547399701,0.17710783,67811.0,67810.0,0.015]
[1729547399919,0.17710783,67811.0,67810.0,0.01763431]
[1729547400381,0.17710783,67811.0,67810.0,0.01846031]
[1729547401077,0.17710783,67811.0,67810.0,0.015826]
[1729547401316,0.17710783,67811.0,67810.0,0.01846031]
[1729547401562,0.72251081,67811.0,67810.0,0.01146031]
[1729547401789,0.023,67808.0,67793.0,0.22124383]
[1729547402020,0.11173086,67794.0,67793.0,0.22124383]
[1729547402240,0.11173086,67794.0,67787.0,0.002]
[1729547402241,0.20016289,67794.0,67787.0,0.002]
[1729547402472,0.17710442,67795.0,67786.0,0.22624383]
[1729547402473,0.11173086,67788.0,67786.0,0.22624383]
[1729547402701,0.11173086,67788.0,67787.0,0.002]
[1729547403181,0.11173086,67788.0,67787.0,0.005]
[1729547403420,0.11173086,67788.0,67786.0,0.005]
[1729547403659,0.11173086,67788.0,67787.0,0.002]
[1729547404105,0.11173086,67788.0,67787.0,0.007]
[1729547404326,0.11173086,67788.0,67787.0,0.005]
[1729547404540,0.11173086,67788.0,67787.0,0.01]
[1729547404995,0.11173086,67788.0,67787.0,0.012]
[1729547405223,0.11173086,67788.0,67787.0,0.01]
[1729547405435,0.11173086,67788.0,67787.0,0.014]
[1729547406847,0.11173086,67788.0,67787.0,0.016]
[1729547409543,0.11173086,67788.0,67787.0,0.01832453]
[1729547410473,0.11173086,67788.0,67787.0,0.16584453]
[1729547410731,0.11173086,67788.0,67787.0,0.16084453]
[1729547410955,0.11173086,67788.0,67787.0,0.16584453]
[1729547411187,0.11173086,67788.0,67787.0,0.16384453]
[1729547411648,0.11173086,67788.0,67787.0,0.16584453]
[1729547412106,0.11173086,67788.0,67787.0,0.16667053]
[1729547416200,0.11173086,67793.0,67787.0,0.16667053]
[1729547416419,0.11173086,67793.0,67792.0,0.002]
[1729547416867,0.11173086,67793.0,67792.0,0.00433035]
[1729547417107,0.11173086,67793.0,67792.0,0.002]
[1729547417304,0.11173086,67793.0,67792.0,0.00433035]
[1729547417559,0.11173086,67793.0,67792.0,0.002]
[1729547417782,0.11173086,67793.0,67792.0,0.00733035]
[1729547418717,0.11173086,67793.0,67792.0,0.00933035]
[1729547424426,0.22124383,67798.0,67792.0,0.00933035]
[1729547424629,0.14895915,67797.0,67792.0,0.00933035]
[1729547424864,0.14895915,67797.0,67792.0,0.007]
[1729547425078,0.14895915,67797.0,67795.0,0.002]
[1729547425959,0.15095915,67797.0,67795.0,0.002]
[1729547426390,0.14895915,67797.0,67795.0,0.002]
[1729547426609,0.23289934,67797.0,67795.0,0.002]
[1729547429556,0.11173086,67796.0,67795.0,0.002]
[1729547429809,0.27450764,67796.0,67795.0,0.002]
[1729547430577,0.27550764,67796.0,67795.0,0.002]
[1729547430998,0.27650764,67796.0,67795.0,0.002]
[1729547432327,0.26269001,67796.0,67795.0,0.002]
[1729547432539,0.27650714,67796.0,67795.0,0.002]
[1729547433291,0.26269001,67796.0,67795.0,0.002]
[1729547433520,0.27650745,67796.0,67795.0,0.002]
[1729547434545,0.32256535,67796.0,67795.0,0.002]
[1729547435468,0.27650745,67796.0,67795.0,0.002]
[1729547435646,0.27650745,67796.0,67795.0,0.002826]
[1729547436232,0.32256485,67796.0,67795.0,0.002826]
[1729547436428,0.27650745,67796.0,67795.0,0.002826]
[1729547441394,0.16477659,67796.0,67795.0,0.002826]
[1729547441600,0.16477597,67796.0,67795.0,0.002826]
[1729547442512,0.20884773,67796.0,67795.0,0.002826]
[1729547443400,0.16477597,67796.0,67795.0,0.002826]
[1729547445448,0.32796123,67796.0,67795.0,0.002826]
[1729547449235,0.32795841,67796.0,67795.0,0.002826]
[1729547451239,0.16477315,67796.0,67795.0,0.002826]
[1729547451402,0.15095915,67796.0,67795.0,0.002826]
[1729547454869,0.31415387,67796.0,67795.0,0.002826]
[1729547455069,0.3279698,67796.0,67795.0,0.002826]
[1729547455948,0.45157466,67796.0,67795.0,0.002826]
[1729547457301,0.43775873,67796.0,67795.0,0.002826]
[1729547457535,0.45157574,67796.0,67795.0,0.002826]
[1729547460093,0.43849715,67796.0,67795.0,0.002826]
[1729547460315,0.32797093,67796.0,67795.0,0.002826]
[1729547461005,0.31415387,67796.0,67795.0,0.002826]
[1729547461230,0.32797065,67796.0,67795.0,0.002826]
[1729547463292,0.31415387,67796.0,67795.0,0.002826]
[1729547463516,0.40257777,67796.0,67795.0,0.002826]
[1729547463735,0.31415387,67796.0,67795.0,0.002826]
[1729547464432,0.31315387,67796.0,67795.0,0.002826]
[1729547464673,0.31415387,67796.0,67795.0,0.002826]
[1729547464891,0.32697778,67796.0,67795.0,0.002826]
[1729547465088,0.31216,67796.0,67795.0,0.002826]
[1729547465287,0.31216,67796.0,67795.0,0.003826]
[1729547465590,0.31216,67796.0,67795.0,0.004826]
[1729547466154,0.32598055,67796.0,67795.0,0.004826]
[1729547466402,0.32598233,67796.0,67795.0,0.004826]
[1729547466720,0.4227363,67796.0,67795.0,0.004826]
[1729547466856,0.32598337,67796.0,67795.0,0.004826]
[1729547467069,0.43655904,67796.0,67795.0,0.004826]
[1729547467494,0.32598601,67796.0,67795.0,0.004826]
[1729547467690,0.40074452,67796.0,67795.0,0.004826]
[1729547468316,0.43669196,67796.0,67795.0,0.004826]
[1729547468524,0.40074818,67796.0,67795.0,0.004826]
[1729547468930,0.31227395,67796.0,67795.0,0.004826]
[1729547469145,0.436703,67796.0,67795.0,0.004826]
[1729547469547,0.43670971,67796.0,67795.0,0.004826]
[1729547469807,0.42288272,67796.0,67795.0,0.004826]
[1729547470010,0.14895915,67796.0,67795.0,0.004826]
[1729547470243,0.42287719,67796.0,67795.0,0.004826]
[1729547471248,0.31227306,67796.0,67795.0,0.004826]
[1729547471492,0.4007563,67796.0,67795.0,0.004826]
[1729547471709,0.40074816,67796.0,67795.0,0.004826]
[1729547471912,0.14895915,67796.0,67795.0,0.004826]
[1729547472332,0.42254146,67796.0,67795.0,0.002826]
[1729547472545,0.42254146,67796.0,67795.0,0.004826]
[1729547472546,0.54653699,67796.0,67795.0,0.004826]
[1729547472771,0.54653694,67796.0,67795.0,0.004826]
[1729547472948,0.50046481,67796.0,67795.0,0.004826]
[1729547473493,0.61219567,67796.0,67795.0,0.004826]
[1729547473753,0.52009567,67796.0,67795.0,0.004826]
[1729547473995,0.43779567,67796.0,67795.0,0.004826]
[1729547475237,0.43779335,67796.0,67795.0,0.004826]
[1729547477127,0.43779373,67796.0,67795.0,0.004826]
[1729547480163,0.27451406,67796.0,67795.0,0.004826]
[1729547480380,0.43779617,67796.0,67795.0,0.004826]
[1729547484271,0.42397212,67796.0,67795.0,0.004826]
[1729547484485,0.43779715,67796.0,67795.0,0.004826]
[1729547485297,0.27451504,67796.0,67795.0,0.004826]
[1729547485522,0.43780971,67796.0,67795.0,0.004826]
[1729547486472,0.43780985,67796.0,67795.0,0.004826]
[1729547486917,0.32607899,67796.0,67795.0,0.004826]
[1729547487486,0.43780985,67796.0,67795.0,0.004826]
[1729547490027,0.43780963,67796.0,67795.0,0.004826]
[1729547491694,0.4239846,67796.0,67795.0,0.004826]
[1729547491820,0.43780978,67796.0,67795.0,0.004826]
[1729547492047,0.27451519,67796.0,67795.0,0.004826]
[1729547495794,0.26069001,67796.0,67795.0,0.004826]
[1729547496040,0.0138261,67796.0,67795.0,0.244729]
[1729547496203,0.27389781,67796.0,67795.0,0.244729]
[1729547496406,0.11173086,67799.0,67795.0,0.2471277]
[1729547496407,0.06636354,67797.0,67795.0,0.2471277]
[1729547496579,0.11173086,67797.0,67796.0,0.376302]
[1729547496956,0.11173086,67797.0,67796.0,0.23121514]
[1729547496957,0.1780944,67797.0,67796.0,0.23121514]
[1729547497172,0.11173086,67797.0,67796.0,0.23121514]
[1729547497375,0.17808198,67797.0,67796.0,0.23121514]
[1729547498043,0.17808198,67797.0,67796.0,0.23621514]
[1729547498762,0.17808198,67797.0,67796.0,0.08871414]
[1729547498977,0.17808198,67797.0,67796.0,0.09371414]
[1729547499203,0.06635112,67797.0,67796.0,0.33361514]
[1729547499432,0.06635112,67798.0,67797.0,0.149499]
[1729547500039,0.06635112,67798.0,67797.0,0.15191314]
[1729547500169,0.06635112,67798.0,67797.0,0.00441414]
[1729547500386,0.06635112,67798.0,67797.0,0.15191314]
[1729547500821,0.06635112,67799.0,67797.0,0.27395935]
[1729547501053,0.13436715,67808.0,67800.0,0.0906]
[1729547501054,0.04422679,67803.0,67800.0,0.0906]
[1729547501270,0.15595765,67805.0,67802.0,0.0906]
[1729547501488,0.04422679,67806.0,67804.0,0.147483]
[1729547501712,0.06635112,67807.0,67805.0,0.0926]
[1729547501713,0.04422679,67807.0,67805.0,0.0926]
[1729547501931,0.06635112,67807.0,67805.0,0.09500829]
[1729547502207,0.11338286,67808.0,67805.0,0.09500829]
[1729547502208,0.06800312,67808.0,67806.0,0.147479]
[1729547502417,0.04419781,67807.0,67806.0,0.152479]
[1729547502623,0.04419781,67807.0,67806.0,0.328179]
[1729547503036,0.04584981,67808.0,67806.0,0.328179]
[1729547503264,0.001652,67808.0,67806.0,0.328179]
[1729547503454,0.001652,67808.0,67807.0,0.152477]
[1729547503893,0.001652,67808.0,67807.0,0.251677]
[1729547504530,0.001652,67808.0,67807.0,0.25406111]
[1729547505242,0.001652,67808.0,67807.0,0.25706111]
[1729547505877,0.001652,67808.0,67807.0,0.25406111]
[1729547506097,0.001652,67808.0,67807.0,0.26406111]
[1729547506320,0.001652,67808.0,67807.0,0.25806111]
[1729547506734,0.001652,67808.0,67807.0,0.26306111]
[1729547507345,0.001652,67808.0,67807.0,0.35621112]
[1729547507552,0.001652,67808.0,67807.0,0.43271112]
[1729547507964,0.001652,67808.0,67807.0,0.19208411]
[1729547508170,0.001652,67808.0,67807.0,0.33956111]
[1729547509181,0.001652,67808.0,67807.0,0.19208411]
[1729547509807,0.001652,67808.0,67807.0,0.33956111]
[1729547510876,0.001652,67808.0,67807.0,0.34156111]
[1729547513978,0.001652,67808.0,67807.0,0.49052026]
[1729547516180,0.001652,67808.0,67807.0,0.49134726]
[1729547519521,0.001652,67808.0,67807.0,0.60117459]
[1729547520410,0.001652,67808.0,67807.0,0.49134726]
[1729547530706,0.001652,67808.0,67807.0,0.34238811]
[1729547537091,0.001652,67808.0,67807.0,0.19491111]
[1729547545439,0.001652,67808.0,67807.0,0.01921111]
[1729547546766,0.001652,67808.0,67807.0,0.01421111]
[1729547546977,0.001652,67808.0,67807.0,0.011827]
[1729547547433,0.11338286,67808.0,67807.0,0.009827]
[1729547547646,0.25550988,67808.0,67807.0,0.009827]
[1729547547810,0.40316566,67808.0,67807.0,0.009827]
[1729547548010,0.33685093,67808.0,67807.0,0.009827]
[1729547548388,0.33685093,67808.0,67807.0,0.011827]
[1729547548653,0.33685093,67808.0,67807.0,0.007827]
[1729547548801,0.33685093,67808.0,67807.0,0.005827]
[1729547549022,0.33685093,67808.0,67807.0,0.009827]
[1729547549469,0.6714134,67808.0,67807.0,0.002827]
[1729547549686,0.51068534,67808.0,67807.0,0.000827]
[1729547549902,0.67197246,67808.0,67807.0,0.004827]
[1729547550111,0.67197246,67808.0,67807.0,0.002827]
[1729547550314,0.67197246,67808.0,67807.0,0.000827]
[1729547550527,0.67197246,67808.0,67807.0,0.003827]
[1729547550747,0.76036852,67808.0,67807.0,0.001827]
[1729547550957,0.76136852,67808.0,67807.0,0.001827]
[1729547551386,0.76036852,67808.0,67807.0,0.001827]
[1729547552005,0.76036852,67808.0,67807.0,0.000827]
[1729547552211,0.67197246,67808.0,67807.0,0.000827]
[1729547552417,0.7612612,67808.0,67807.0,0.000827]
[1729547552621,0.7632612,67808.0,67807.0,0.000827]
[1729547552829,0.7622612,67808.0,67807.0,0.000827]
[1729547553039,0.7602612,67808.0,67807.0,0.000827]
[1729547553267,0.7652612,67808.0,67807.0,0.000827]
[1729547553698,0.76524897,67808.0,67807.0,0.000827]
[1729547553910,0.67688314,67808.0,67807.0,0.000827]
[1729547554111,0.76524897,67808.0,67807.0,0.000827]
[1729547554373,0.67688314,67808.0,67807.0,0.000827]
[1729547554493,0.58004292,67808.0,67807.0,0.000827]
[1729547554696,0.56624303,67808.0,67807.0,0.000827]
[1729547554907,0.56624295,67808.0,67807.0,0.000827]
[1729547555731,0.49998615,67808.0,67807.0,0.000827]
[1729547557235,0.65587934,67808.0,67807.0,0.000827]
[1729547558303,0.61171701,67808.0,67807.0,0.000827]
[1729547558919,0.67797381,67808.0,67807.0,0.000827]
[1729547559338,0.65587609,67808.0,67807.0,0.000827]
[1729547559530,0.67797381,67808.0,67807.0,0.000827]
[1729547559741,0.78851227,67808.0,67807.0,0.000827]
[1729547560348,0.62551375,67808.0,67807.0,0.000827]
[1729547562244,0.69173675,67808.0,67807.0,0.000827]
[1729547564628,0.78844503,67808.0,67807.0,0.000827]
[1729547564830,0.87672257,67808.0,67807.0,0.000827]
[1729547566129,0.72924757,67808.0,67807.0,0.000827]
[1729547566348,0.44407003,67808.0,67807.0,0.000827]
[1729547566585,0.11838286,67808.0,67807.0,0.000827]
[1729547566808,0.11838286,67808.0,67807.0,0.00313726]
[1729547567025,0.11438286,67808.0,67807.0,0.00313726]
[1729547567264,0.11338286,67808.0,67807.0,0.00313726]
[1729547567496,0.11338286,67808.0,67807.0,0.15061426]
[1729547567497,0.11738286,67808.0,67807.0,0.15061426]
[1729547567718,0.11738286,67808.0,67807.0,0.24971426]
[1729547568164,0.11638286,67808.0,67807.0,0.24971426]
[1729547568408,0.11638286,67808.0,67807.0,0.33211426]
[1729547568630,0.004652,67808.0,67807.0,0.34111426]
[1729547569771,0.001652,67808.0,67807.0,0.34111426]
[1729547569997,0.001652,67808.0,67807.0,0.34811426]
[1729547570690,0.001652,67808.0,67807.0,0.34611426]
[1729547571375,0.001652,67808.0,67807.0,0.34811426]
[1729547603326,0.001652,67808.0,67807.0,0.49707341]
[1729547603547,0.001652,67808.0,67807.0,0.62227335]
[1729547603778,0.001652,67808.0,67807.0,0.62427335]
[1729547603993,0.001652,67808.0,67807.0,0.72227335]
[1729547604421,0.001652,67808.0,67807.0,0.70827335]
[1729547604881,0.001652,67808.0,67807.0,0.71627335]
[1729547605128,0.001652,67808.0,67807.0,0.73927335]
[1729547605361,0.001652,67808.0,67807.0,0.79755756]
[1729547605561,0.001652,67808.0,67807.0,0.81355756]
[1729547605748,0.001652,67808.0,67807.0,0.82155756]
[1729547605991,0.001652,67808.0,67807.0,0.81355756]
[1729547606411,0.001652,67808.0,67807.0,0.76127335]
[1729547606617,0.001652,67808.0,67807.0,0.82747312]
[1729547607481,0.001652,67808.0,67807.0,0.83692907]
[1729547607723,0.22124383,67818.0,67817.0,0.02]
[1729547607962,0.22124383,67818.0,67817.0,0.70504501]
[1729547608208,0.001652,67821.0,67820.0,0.169449]
[1729547608425,0.001652,67821.0,67820.0,0.70503901]
[1729547608638,0.001652,67821.0,67820.0,0.70725956]
[1729547608845,0.001652,67821.0,67820.0,0.8154595]
[1729547609404,0.001652,67821.0,67820.0,0.8194595]
[1729547609846,0.001652,67821.0,67820.0,0.8334595]
[1729547610462,0.001652,67821.0,67820.0,0.8564595]
[1729547610662,0.001652,67821.0,67820.0,0.8704595]
[1729547611888,0.001656,67842.0,67820.0,0.8704595]
[1729547611889,0.001656,67842.0,67835.0,0.169416]
[1729547612111,0.001656,67842.0,67835.0,0.73671036]
[1729547612549,0.001656,67842.0,67836.0,0.447314]
[1729547612770,0.001656,67842.0,67836.0,0.59842742]
[1729547613874,0.001656,67842.0,67836.0,0.61242742]
[1729547614106,0.001656,67842.0,67836.0,0.62642742]
[1729547614324,0.001656,67842.0,67836.0,0.73662736]
[1729547614547,0.001656,67842.0,67836.0,0.73862736]
[1729547615655,0.001656,67842.0,67836.0,0.73662736]
[1729547615887,0.001656,67842.0,67836.0,0.73862736]
[1729547618582,0.001656,67842.0,67836.0,0.73662736]
[1729547618795,0.001656,67842.0,67836.0,0.73862736]
[1729547622671,0.001656,67842.0,67836.0,0.62842742]
[1729547627284,0.001656,67842.0,67836.0,0.62442742]
[1729547627487,0.001656,67842.0,67836.0,0.62842742]
[1729547628011,0.001656,67842.0,67836.0,0.61442742]
[1729547628658,0.001656,67842.0,67836.0,0.61042742]
[1729547629269,0.001656,67842.0,67836.0,0.62442742]
[1729547629633,0.001656,67842.0,67836.0,0.61042742]
[1729547630053,0.001656,67842.0,67836.0,0.61242742]
[1729547630260,0.001656,67842.0,67836.0,0.61042742]
[1729547630456,0.001656,67842.0,67836.0,0.62442742]
[1729547630660,0.001656,67842.0,67836.0,0.63032942]
[1729547632413,0.001656,67842.0,67836.0,0.63432942]
[1729547644204,0.001656,67842.0,67836.0,0.62032942]
[1729547644425,0.001656,67842.0,67836.0,0.53982942]
[1729547644884,0.001656,67842.0,67836.0,0.54482942]
[1729547645690,0.001656,67842.0,67836.0,0.54982942]
[1729547649229,0.001656,67842.0,67836.0,0.55182942]
[1729547654510,0.001656,67842.0,67836.0,0.55382942]
[1729547657570,0.001656,67842.0,67836.0,0.62016171]
[1729547661930,0.001656,67842.0,67836.0,0.62020207]
[1729547662340,0.001656,67842.0,67836.0,0.61820207]
[1729547663599,0.001656,67842.0,67836.0,0.61620207]
[1729547663780,0.001656,67842.0,67836.0,0.61820207]
[1729547664465,0.001656,67842.0,67836.0,0.55182942]
[1729547664604,0.001656,67842.0,67836.0,0.64033033]
[1729547665053,0.001656,67842.0,67836.0,0.55182942]
[1729547666087,0.001656,67842.0,67836.0,0.64033081]
[1729547666286,0.001656,67842.0,67836.0,0.55182942]
[1729547666501,0.001656,67842.0,67836.0,0.61820904]
[1729547667064,0.001656,67842.0,67836.0,0.61821377]
[1729547667506,0.001656,67842.0,67836.0,0.55182942]
[1729547671579,0.001656,67842.0,67836.0,0.54682942]
[1729547671775,0.001656,67842.0,67836.0,0.54092742]
[1729547672176,0.001656,67842.0,67836.0,0.54592742]
[1729547676162,0.11173086,67841.0,67836.0,0.43852742]
[1729547676380,0.001656,67842.0,67836.0,0.43852742]
[1729547676381,0.181154,67837.0,67836.0,0.28956827]
[1729547676624,0.181154,67837.0,67836.0,0.18456827]
[1729547677241,0.181154,67837.0,67836.0,0.17056827]
[1729547677683,0.181154,67837.0,67836.0,0.18456827]
[1729547677900,0.181154,67837.0,67836.0,0.17056827]
[1729547678774,0.181154,67837.0,67836.0,0.15656827]
[1729547679032,0.181154,67837.0,67836.0,0.17056827]
[1729547679253,0.181154,67837.0,67836.0,0.18456827]
[1729547679677,0.181154,67837.0,67836.0,0.17056827]
[1729547679888,0.181154,67837.0,67836.0,0.18456827]
[1729547683742,0.100554,67837.0,67836.0,0.18456827]
[1729547684163,0.001654,67837.0,67836.0,0.18456827]
[1729547720085,0.001654,67837.0,67836.0,0.18256827]
[1729547721745,0.001654,67837.0,67836.0,0.18456827]
[1729547724114,0.001654,67837.0,67836.0,0.27866827]
[1729547751347,0.00141345,67837.0,67836.0,0.27866827]
[1729547766277,0.00141345,67837.0,67836.0,0.24866827]
[1729547777616,0.00141345,67837.0,67836.0,0.24949527]
[1729547789442,0.00141345,67837.0,67836.0,0.24749527]
[1729547789664,0.00141345,67837.0,67836.0,0.24949527]
[1729547792851,0.00141345,67837.0,67836.0,0.247341]
[1729547793061,0.00141345,67837.0,67836.0,0.24945263]
[1729547820661,0.00141345,67837.0,67836.0,0.47701178]
[1729547829705,0.00141345,67837.0,67836.0,0.53603778]
[1729547835403,0.00141345,67837.0,67836.0,0.57403778]
[1729547835823,0.00141345,67837.0,67836.0,0.67403778]
[1729547847021,0.00141345,67837.0,67836.0,0.67203778]
[1729547847236,0.00141345,67837.0,67836.0,0.67403778]
[1729547847469,0.00141345,67837.0,67836.0,0.67603778]
[1729547847681,0.00141345,67837.0,67836.0,0.67403778]
[1729547848095,0.00141345,67837.0,67836.0,0.67203778]
[1729547849201,0.00141345,67837.0,67836.0,0.67403778]
[1729547851490,0.00141345,67837.0,67836.0,0.66003778]
[1729547851915,0.00141345,67837.0,67836.0,0.76243719]
[1729547852571,0.00141345,67837.0,67836.0,0.66203778]
[1729547852853,0.00141345,67837.0,67836.0,0.75043719]
[1729547853070,0.00141345,67837.0,67836.0,0.76442538]
[1729547853292,0.00141345,67837.0,67836.0,0.66203778]
[1729547853511,0.00141345,67837.0,67836.0,0.76441336]
[1729547853723,0.00141345,67837.0,67836.0,0.75041336]
[1729547853939,0.00141345,67837.0,67836.0,0.73641336]
[1729547854155,0.00141345,67837.0,67836.0,0.75041336]
[1729547854372,0.00141345,67837.0,67836.0,0.76441336]
[1729547854810,0.00141345,67837.0,67836.0,0.67603778]
[1729547855894,0.00141345,67837.0,67836.0,0.76441336]
[1729547856123,0.00141345,67837.0,67836.0,0.67603778]
[1729547856800,0.00141345,67837.0,67836.0,0.78654323]
[1729547857015,0.00141345,67837.0,67836.0,0.67603778]
[1729547858334,0.00141345,67837.0,67836.0,0.76437191]
[1729547858775,0.00141345,67837.0,67836.0,0.67603778]
[1729547860292,0.00141345,67837.0,67836.0,0.76435999]
[1729547862706,0.00141345,67837.0,67836.0,0.67603778]
[1729547862945,0.22291383,67849.0,67848.0,0.024]
[1729547863166,0.22291383,67849.0,67848.0,0.61624715]
[1729547863368,0.00167,67849.0,67848.0,0.61832221]
[1729547864276,0.00167,67849.0,67848.0,0.64632221]
[1729547864485,0.00167,67849.0,67848.0,0.63232221]
[1729547864911,0.00167,67849.0,67848.0,0.64632221]
[1729547865598,0.00167,67849.0,67848.0,0.63232221]
[1729547865812,0.00167,67849.0,67848.0,0.64632221]
[1729547866252,0.00167,67849.0,67848.0,0.63232221]
[1729547867085,0.00167,67849.0,67848.0,0.69132621]
[1729547867509,0.00167,67849.0,67848.0,0.70532621]
[1729547867717,0.00167,67849.0,67848.0,0.71460201]
[1729547872122,0.00167,67849.0,67848.0,0.70060201]
[1729547872345,0.00167,67849.0,67848.0,0.71460201]
[1729547874505,0.00167,67849.0,67848.0,0.71460201]
[1729547877642,0.00167,67849.0,67848.0,0.68660201]
[1729547878096,0.00167,67849.0,67848.0,0.71460201]
[1729547878524,0.00167,67849.0,67848.0,0.70060201]
[1729547878961,0.00167,67849.0,67848.0,0.71460201]
[1729547879174,0.00167,67849.0,67848.0,0.70060201]
[1729547879646,0.00167,67849.0,67848.0,0.71460201]
[1729547881574,0.00167,67849.0,67848.0,0.70060201]
[1729547881777,0.00167,67849.0,67848.0,0.71460201]
[1729547882830,0.00167,67849.0,67848.0,0.70060201]
[1729547883063,0.12167,67849.0,67848.0,0.70060201]
[1729547883765,0.12167,67849.0,67848.0,0.71460201]
[1729547885231,0.12167,67849.0,67848.0,0.70060201]
[1729547885404,0.12167,67849.0,67848.0,0.78881889]
[1729547885607,0.12167,67849.0,67848.0,0.71460201]
[1729547885824,0.12167,67849.0,67848.0,0.70060201]
[1729547886221,0.12167,67849.0,67848.0,0.71460201]
[1729547886606,0.12167,67849.0,67848.0,0.78881889]
[1729547886839,0.12167,67849.0,67848.0,0.77481889]
[1729547887073,0.12167,67849.0,67848.0,0.78881889]
[1729547887253,0.12167,67849.0,67848.0,0.80281889]
[1729547887622,0.12167,67849.0,67848.0,0.70060201]
[1729547888134,0.12167,67849.0,67848.0,0.71460201]
[1729547889292,0.12167,67849.0,67848.0,0.70060201]
[1729547889756,0.12167,67849.0,67848.0,0.80284735]
[1729547889965,0.12167,67849.0,67848.0,0.70060201]
[1729547890184,0.12167,67849.0,67848.0,0.71460201]
[1729547890386,0.12167,67849.0,67848.0,0.80284353]
[1729547890538,0.12167,67849.0,67848.0,0.71460201]
[1729547890744,0.12167,67849.0,67848.0,0.70060201]
[1729547891025,0.12167,67849.0,67848.0,0.80284399]
[1729547891184,0.12167,67849.0,67848.0,0.82487312]
[1729547891390,0.12167,67849.0,67848.0,0.80284088]
[1729547896267,0.12167,67849.0,67848.0,0.71460201]
[1729547902149,0.1025447,67849.0,67848.0,0.71460201]
[1729547907726,0.0825447,67849.0,67848.0,0.71460201]
[1729547911103,0.09997,67866.0,67865.0,0.194351]
[1729547911104,0.00167,67866.0,67865.0,0.194351]
[1729547911321,0.00167,67866.0,67865.0,0.66288981]
[1729547911545,0.00167,67866.0,67865.0,0.66489805]
[1729547911965,0.00167,67866.0,67865.0,0.72389505]
[1729547912168,0.00167,67866.0,67865.0,0.73789505]
[1729547912802,0.00167,67866.0,67865.0,0.75189505]
[1729547914332,0.00167,67866.0,67865.0,0.76111336]
[1729547921005,0.00167,67866.0,67865.0,0.6493825]
[1729547922978,0.0932,67870.0,67869.0,0.261342]
[1729547923181,0.0932,67870.0,67869.0,0.44336424]
[1729547923809,0.0932,67870.0,67869.0,0.40236124]
[1729547924032,0.0932,67870.0,67869.0,0.50236124]
[1729547924254,0.30937603,67887.0,67875.0,0.149329]
[1729547924255,0.1035,67878.0,67875.0,0.149329]
[1729547924481,0.1035,67878.0,67875.0,0.15132224]
[1729547924933,0.1035,67878.0,67875.0,0.14932224]
[1729547925642,0.1035,67878.0,67875.0,0.16332224]
[1729547925861,0.1035,67878.0,67875.0,0.17732224]
[1729547930307,0.1035,67878.0,67875.0,0.18232224]
[1729547930984,0.006,67878.0,67875.0,0.18232224]
[1729547931872,0.006,67878.0,67875.0,0.15432224]
[1729547932253,0.006,67878.0,67875.0,0.19164596]
[1729547933689,0.006,67878.0,67875.0,0.19564596]
[1729547934906,0.0929,67883.0,67875.0,0.19564596]
[1729547937216,0.1755,67877.0,67875.0,0.19164596]
[1729547937407,0.1755,67877.0,67875.0,0.19364596]
[1729547945258,0.0998,67878.0,67875.0,0.19364596]
[1729547948956,0.17607,67876.0,67875.0,0.18432224]
[1729547949174,0.28780086,67876.0,67875.0,0.18432224]
[1729547951007,0.17607,67876.0,67875.0,0.18432224]
[1729547953859,0.28780086,67876.0,67875.0,0.18432224]
[1729547963009,0.11340086,67876.0,67875.0,0.18432224]
[1729547963380,0.00167,67876.0,67875.0,0.18432224]
[1729547979358,0.00167,67876.0,67875.0,0.18232224]
[1729547979359,0.10157,67876.0,67875.0,0.18232224]
[1729547979483,0.10157,67876.0,67875.0,0.18432224]
[1729547979907,0.00167,67876.0,67875.0,0.18432224]
[1729547990535,0.00167,67876.0,67875.0,0.02999324]
[1729547990536,0.37344662,67876.0,67875.0,0.02999324]
[1729547990764,0.72205411,67876.0,67875.0,0.03199324]
[1729547990972,0.70697365,67876.0,67875.0,0.03]
[1729547991429,0.57471954,67876.0,67875.0,0.03]
[1729547991661,0.57471954,67876.0,67875.0,0.016]
[1729547991875,0.48503466,67876.0,67875.0,0.002]
[1729547992104,0.46298868,67876.0,67875.0,0.003]
[1729547992347,0.58331591,67876.0,67875.0,0.003]
[1729547992568,0.69504677,67876.0,67875.0,0.006]
[1729547992817,0.69504677,67876.0,67875.0,0.003]
[1729547993030,0.69504677,67876.0,67875.0,0.006]
[1729547993240,0.67147511,67876.0,67875.0,0.006]
[1729547993451,0.78320597,67876.0,67875.0,0.006]
[1729547994365,0.78320597,67876.0,67875.0,0.008]
[1729547994588,0.82733701,67876.0,67875.0,0.006]
[1729547994812,0.97466401,67876.0,67875.0,0.006]
[1729547995288,0.60534775,67876.0,67875.0,0.006]
[1729547995525,0.71707861,67876.0,67875.0,0.006]
[1729547995740,0.58331591,67876.0,67875.0,0.006]
[1729547996204,0.60534993,67876.0,67875.0,0.006]